fUSD/lending_fUSD_20240220
["ID","MTS","AMOUNT","RATE_DAILY","PERIOD"]
[314516203,1708395038571,-151.0,0.00040256,14]
[314516204,1708395038582,-151.0,0.00040256,14]
[314516205,1708395038591,-151.0,0.00040256,14]
[314516206,1708395038601,-151.0,0.00040256,14]
[314516207,1708395038610,-151.0,0.00040256,14]
[314516208,1708395038621,-212.137155,0.00040256,14]
[314516209,1708395038631,-151.0,0.00040256,14]
[314516210,1708395038641,-151.0,0.00040256,14]
[314516211,1708395038653,-151.0,0.00040256,14]
[314516212,1708395038663,-165.914061,0.00040256,14]
[314516213,1708395038675,-165.914061,0.00040256,14]
[314516214,1708395038684,-151.0,0.00040256,14]
[314516216,1708395038694,-151.0,0.00040256,14]
[314516218,1708395038702,-155.543391,0.00040256,14]
[314516220,1708395038711,-151.0,0.00040256,14]
[314516223,1708395038722,-151.0,0.00040256,14]
[314516225,1708395038732,-151.0,0.00040256,14]
[314516227,1708395038742,-151.0,0.00040256,14]
[314516229,1708395038751,-151.0,0.00040256,14]
[314516231,1708395038760,-281.484785,0.00040256,14]
[314516233,1708395038769,-1019.508399,0.00040256,14]
[314516235,1708395038778,-1019.508399,0.00040256,14]
[314516237,1708395038788,-500.0,0.00040256,2]
[314516239,1708395038797,-3931.54806876,0.00040256,2]
[314516240,1708395038808,-2964.93490924,0.00040256,2]
[314516243,1708395038819,-67960.29766451,0.00040256,2]
[314516248,1708395038870,-170143.21935749,0.00040256,2]
[314516250,1708395038880,-83690.0617394,0.00040257,5]
[314516252,1708395038889,-196.24821238,0.00040265,4]
[314516253,1708395038898,-100000.0,0.00040267,2]
[314516254,1708395038907,-151.0,0.00040267,14]
[314516255,1708395038916,-151.0,0.00040267,14]
[314516256,1708395038927,-165.914061,0.00040267,14]
[314516257,1708395038936,-165.914061,0.00040267,14]
[314516258,1708395038945,-151.0,0.00040267,14]
[314516259,1708395038954,-151.0,0.00040267,14]
[314516260,1708395038963,-151.0,0.00040267,14]
[314516261,1708395038972,-151.0,0.00040267,14]
[314516262,1708395038981,-151.0,0.00040267,14]
[314516263,1708395038991,-1019.508399,0.00040267,14]
[314516264,1708395039000,-1019.508399,0.00040267,14]
[314516265,1708395039009,-489.0,0.00040274,14]
[314516266,1708395039018,-217.66,0.00040274,2]
[314516267,1708395039027,-151.6,0.00040274,2]
[314516268,1708395039036,-150.0,0.00040274,2]
[314516269,1708395039045,-326.32,0.00040274,2]
[314516270,1708395039055,-150.0,0.00040274,2]
[314516271,1708395039063,-150.0,0.00040274,2]
[314516272,1708395039072,-150.0,0.00040274,2]
[314516273,1708395039081,-150.0,0.00040274,2]
[314516275,1708395039093,-150.0,0.00040274,2]
[314516277,1708395039103,-150.0,0.00040274,2]
[314516280,1708395039113,-157.61065836,0.00040275,7]
[314516282,1708395039122,-239.73691467,0.00040328,2]
[314516284,1708395039132,-240.82167341,0.00040342,2]
[314516286,1708395039141,-189.65364491,0.00040348,2]
[314516288,1708395039150,-503.74704771,0.00040348,2]
[314516290,1708395039159,-151.0,0.00040363,14]
[314516292,1708395039167,-151.0,0.00040363,14]
[314516294,1708395039179,-156.09910031,0.0004039,2]
[314516296,1708395039188,-909.45827,0.0004039,4]
[314516298,1708395039197,-6416.91056268,0.00040417,2]
[314516300,1708395039206,-151.0,0.00040418,14]
[314516302,1708395039215,-151.0,0.00040418,14]
[314516304,1708395039224,-151.0,0.00040418,14]
[314516306,1708395039234,-151.0,0.00040418,14]
[314516308,1708395039243,-684.3957824,0.0004042,2]
[314516310,1708395039253,-202.376581,0.00040465,5]
[314516312,1708395039262,-205.938256,0.00040469,5]
[314516314,1708395039272,-800.0,0.00040469,5]
[314516316,1708395039281,-200.0,0.00040469,20]
[314516318,1708395039290,-500.0,0.00040469,20]
[314516319,1708395039299,-200.0,0.00040469,20]
[314516322,1708395039309,-514.7073362,0.00040515,2]
[314516324,1708395039319,-168.48,0.00040528,2]
[314516326,1708395039329,-240.82167341,0.00040528,2]
[314516328,1708395039338,-157.022088,0.00040568,16]
[314516330,1708395039348,-157.022088,0.00040568,16]
[314516332,1708395039357,-165.914061,0.00040645,14]
[314516334,1708395039366,-165.914061,0.00040645,14]
[314516336,1708395039376,-151.0,0.00040645,14]
[314516338,1708395039385,-151.0,0.00040645,14]
[314516339,1708395039394,-151.0,0.00040645,14]
[314516342,1708395039403,-151.0,0.00040645,14]
[314516344,1708395039413,-239.887298,0.00040645,14]
[314516346,1708395039424,-1019.508399,0.00040645,14]
[314516348,1708395039432,-1019.508399,0.00040645,14]
[314516350,1708395039443,-167380.123479,0.00040645,6]
[314516352,1708395039451,-331.69722885,0.00040655,3]
[314516354,1708395039461,-368297.63092054,0.00040655,2]
[314516356,1708395039469,-151.0,0.00040655,14]
[314516358,1708395039478,-151.0,0.00040655,14]
[314516360,1708395039488,-288.922229,0.00040655,14]
[314516362,1708395039497,-165.914061,0.00040655,14]
[314516364,1708395039506,-165.914061,0.00040655,14]
[314516366,1708395039515,-151.0,0.00040655,14]
[314516368,1708395039524,-151.0,0.00040655,14]
[314516370,1708395039533,-158.833521,0.00040655,14]
[314516372,1708395039542,-151.0,0.00040655,14]
[314516374,1708395039553,-1019.508399,0.00040655,14]
[314516376,1708395039562,-1019.508399,0.00040655,14]
[314516378,1708395039571,-151.0,0.00040657,14]
[314516380,1708395039581,-1000.0,0.00040667,2]
[314516397,1708395039734,-1000.0,0.00040667,2]
[314516399,1708395039782,-1000.0,0.00040667,2]
[314516400,1708395039792,-1000.0,0.00040667,2]
[314516401,1708395039803,-1000.0,0.00040667,2]
[314516402,1708395039814,-1000.0,0.00040667,2]
[314516403,1708395039825,-1000.0,0.00040667,2]
[314516404,1708395039835,-1000.0,0.00040667,2]
[314516405,1708395039847,-1000.0,0.00040667,2]
[314516406,1708395039857,-1000.0,0.00040667,2]
[314516407,1708395039867,-1000.0,0.00040667,2]
[314516408,1708395039876,-1000.0,0.00040667,2]
[314516409,1708395039886,-1000.0,0.00040667,2]
[314516410,1708395039895,-1000.0,0.00040667,2]
[314516411,1708395039905,-1000.0,0.00040667,2]
[314516412,1708395039915,-1000.0,0.00040667,2]
[314516413,1708395039927,-1000.0,0.00040667,2]
[314516414,1708395039937,-1000.0,0.00040667,2]
[314516415,1708395039947,-1000.0,0.00040667,2]
[314516416,1708395039957,-1000.0,0.00040667,2]
[314516417,1708395039967,-1000.0,0.00040667,2]
[314516418,1708395039977,-1030.9627567,0.00040667,2]
[314516419,1708395039987,-1707.70346094,0.0004068,2]
[314516420,1708395039996,-1480.28630438,0.0004068,2]
[314516421,1708395040006,-252.03500791,0.0004068,2]
[314516422,1708395040016,-468.72018778,0.0004068,2]
[314516423,1708395040026,-1224.97873044,0.0004068,2]
[314516424,1708395040036,-200.0,0.00040685,7]
[314516425,1708395040046,-514.7073362,0.00040694,2]
[314516426,1708395040057,-837.04238058,0.00040705,10]
[314516427,1708395040066,-341.50198135,0.00040706,30]
[314516428,1708395040076,-240.82167341,0.00040714,2]
[314516429,1708395040086,-151.0,0.00040758,14]
[314516430,1708395040096,-151.0,0.0004076,14]
[314516431,1708395040106,-167.257223,0.0004076,14]
[314516432,1708395040116,-151.0,0.0004076,14]
[314516433,1708395040126,-151.0,0.0004076,14]
[314516434,1708395040137,-151.0,0.0004076,14]
[314516435,1708395040148,-151.0,0.0004076,14]
[314516436,1708395040158,-314.86236366,0.0004076,2]
[314516437,1708395040167,-1703.52301543,0.00040764,14]
[314516438,1708395040179,-282.48,0.00040769,2]
[314516439,1708395040188,-177.272434,0.0004077,14]
[314516440,1708395040198,-174.10201,0.0004077,14]
[314516441,1708395040207,-151.0,0.0004077,14]
[314516442,1708395040217,-334760.246957,0.0004077,6]
[314516443,1708395040227,-151.0,0.0004077,14]
[314516444,1708395040236,-151.0,0.0004077,14]
[314516445,1708395040246,-165.914061,0.0004077,14]
[314516446,1708395040256,-165.914061,0.0004077,14]
[314516447,1708395040266,-166.847382,0.0004077,14]
[314516448,1708395040276,-151.0,0.0004077,14]
[314516449,1708395040289,-151.0,0.0004077,14]
[314516450,1708395040322,-1019.508399,0.0004077,14]
[314516451,1708395040332,-1019.508399,0.0004077,14]
[314516452,1708395040342,-791762.010832,0.0004078,3]
[314516453,1708395040354,-18158.56118764,0.0004078,2]
[314516454,1708395040365,-313.07911941,0.0004078,2]
[314516455,1708395040374,-288.85655526,0.0004078,2]
[314516456,1708395040384,-151.0,0.0004078,14]
[314516457,1708395040395,-151.0,0.0004078,14]
[314516458,1708395040405,-151.0,0.0004078,14]
[314516459,1708395040414,-165.914061,0.0004078,14]
[314516460,1708395040424,-165.914061,0.0004078,14]
[314516461,1708395040434,-151.0,0.0004078,14]
[314516462,1708395040443,-151.0,0.0004078,14]
[314516463,1708395040452,-1019.508399,0.0004078,14]
[314516464,1708395040462,-1019.508399,0.0004078,14]
[314516465,1708395040471,-314.86236366,0.00040783,2]
[314516466,1708395040482,-165.914061,0.00040793,14]
[314516467,1708395040491,-165.914061,0.00040793,14]
[314516468,1708395040500,-151.0,0.00040793,14]
[314516469,1708395040510,-151.0,0.00040793,14]
[314516470,1708395040519,-1019.508399,0.00040793,14]
[314516471,1708395040529,-1019.508399,0.00040793,14]
[314516472,1708395040539,-933782.36963155,0.00040793,4]
[314516473,1708395040559,-778.1216805,0.00040793,4]
[314516474,1708395040571,-27560.07441361,0.00040793,4]
[314516475,1708395040584,-2280.21652244,0.00040793,4]
[314516479,1708395041659,-500.0,0.0004068,2]
[314516480,1708395041672,-1245.01514611,0.0004068,2]
[314516481,1708395041684,-568.94,0.0004068,2]
[314516482,1708395041696,-657.02183902,0.0004068,2]
[314516483,1708395041708,-250.0,0.0004068,2]
[314516484,1708395041725,-725.6890844,0.0004068,2]
[314516485,1708395041984,-257.14030747,0.0004068,2]
[314516486,1708395042044,-61439.14138868,0.00040793,4]
[314516487,1708395042056,-439.77229351,0.00040793,4]
[314516493,1708395043287,-52158.6638437,0.00040793,4]
[314516494,1708395043299,-2512.81682625,0.00040793,4]
[314516495,1708395043310,-848.89,0.00040793,4]
[314516496,1708395043321,-1190.88001,0.00040793,4]
[314516497,1708395043332,-11139.050011,0.00040793,4]
[314516498,1708395043421,-538.98092518,0.00040793,4]
[314516499,1708395043433,-651.06340159,0.00040793,4]
[314516500,1708395043444,-6963.35325699,0.00040793,4]
[314516501,1708395043521,-835.04991627,0.00040793,4]
[314516502,1708395043535,-11186.20906966,0.00040793,4]
[314516503,1708395043547,-558.46000086,0.00040793,4]
[314516504,1708395043574,-315.14124171,0.00040793,4]
[314516505,1708395043587,-255.93035,0.00040793,4]
[314516506,1708395043644,-492.21985955,0.00040793,4]
[314516507,1708395043656,-542.5500005,0.00040793,4]
[314516508,1708395043667,-825.11147515,0.00040793,4]
[314516509,1708395043679,-1020.5000005,0.00040793,4]
[314516513,1708395046336,-495.22347624,0.00040793,4]
[314516514,1708395046396,-289.63799347,0.00040793,4]
[314516515,1708395046407,-6895.33541699,0.00040793,4]
[314516516,1708395046515,-4000.0,0.00040793,4]
[314516517,1708395046546,-507.30573655,0.00040793,4]
[314516518,1708395046557,-6653.02724085,0.00040793,4]
[314516519,1708395046569,-20905.01029944,0.00040793,4]
[314516520,1708395046583,-3160.5631174,0.00040793,4]
[314516521,1708395046594,-2644.06112999,0.00040793,4]
[314516522,1708395046648,-525.90278339,0.00040793,4]
[314516523,1708395046659,-1174.00153585,0.00040793,4]
[314516524,1708395046672,-7329.91056802,0.00040793,4]
[314516525,1708395046684,-11262.93420633,0.00040793,4]
[314516548,1708395254293,628.49,0.00025,10]
[314516553,1708395829223,-641.57467239,0.00023996,2]
[314516554,1708395829244,-295.42532761,0.00023996,2]
[314516555,1708395906126,150.0,0.00022996,2]
[314516556,1708395954123,-422.16474559,0.00023543,2]
[314516557,1708395954143,-151.27923715,0.00023544,2]
[314516558,1708395954162,-641.57467239,0.00023992,2]
[314516559,1708395954180,-1631.81307797,0.00023993,2]
[314516560,1708395991805,-422.16474559,0.00023982,2]
[314516561,1708396007626,24.83525441,0.00023982,2]
[314516562,1708396030098,-154.95876074,0.00023982,2]
[314516563,1708396034234,-737.13089424,0.00023981,2]
[314516564,1708396034258,-242.37073044,0.00023982,2]
[314516565,1708396034279,-2335.13715985,0.00023994,2]
[314516566,1708396034299,-4168.07460296,0.00023995,2]
[314516567,1708396034321,-936.08230024,0.00023996,2]
[314516568,1708396034341,-449.11441281,0.00023996,2]
[314516573,1708396119656,-333.0,0.00023993,2]
[314516576,1708396151105,-641.57467239,0.00023992,2]
[314516577,1708396151127,-2002.13715985,0.00023993,2]
[314516578,1708396151148,-1052.21797984,0.00023995,2]
[314516579,1708396151169,-405.72211216,0.00023995,2]
[314516580,1708396151190,-30145.43603217,0.00023996,2]
[314516581,1708396151211,-8368.80100116,0.00023996,2]
[314516582,1708396151397,40129.21,0.000255,25]
[314516583,1708396153105,-1058.67703635,0.00023996,2]
[314516584,1708396156093,-22134.382,0.00023996,2]
[314516585,1708396158091,-21510.907,0.00023996,2]
[314516586,1708396160097,-1172.21323591,0.00023996,2]
[314516587,1708396160117,-259.05645191,0.00024997,2]
[314516588,1708396160138,-750.0,0.00025,3]
[314516589,1708396160157,-732.24632255,0.00028,2]
[314516590,1708396160177,-161.68862809,0.00029893,2]
[314516591,1708396160197,-3000.0,0.0003,2]
[314516592,1708396160216,-4745.89648807,0.0003,2]
[314516593,1708396160236,-21019.37587347,0.000319,4]
[314516596,1708396173088,-150.0,0.000319,4]
[314516597,1708396174116,-1761.01729691,0.000319,4]
[314516609,1708396231482,-250.62,0.000319,4]
[314516610,1708396231539,-2726.40237381,0.000319,4]
[314516611,1708396231549,-161.68862809,0.0003349,2]
[314516612,1708396231558,-499.99,0.00033599,2]
[314516613,1708396231567,-213.0,0.00033599,2]
[314516614,1708396231577,-1166.31,0.00035067,2]
[314516615,1708396231586,-523.5,0.00035067,2]
[314516616,1708396231595,-1472.72,0.00035068,2]
[314516617,1708396231604,-1436.94,0.00035068,2]
[314516618,1708396231613,-1920.424692,0.00035068,2]
[314516619,1708396231622,-677.65789,0.00035068,2]
[314516620,1708396231631,-723.39687,0.00035068,2]
[314516621,1708396231640,-308.169667,0.00035068,2]
[314516622,1708396231650,-476.29,0.00035298,2]
[314516623,1708396231659,-613.40936318,0.00035858,2]
[314516624,1708396231668,-2880.637038,0.00035958,2]
[314516625,1708396231678,-1016.486835,0.00035958,2]
[314516626,1708396231688,-2061.57,0.00035958,2]
[314516627,1708396231699,-1085.095305,0.00035958,2]
[314516628,1708396231708,-462.254501,0.00035958,2]
[314516629,1708396231717,-3137.42036832,0.00036849,4]
[314516630,1708396231726,-862.00051953,0.00036849,4]
[314516631,1708396231735,-584.45,0.0003685,2]
[314516632,1708396231744,-150.0,0.00036972,2]
[314516633,1708396231753,-3840.849385,0.00036986,2]
[314516634,1708396231762,-1355.31578,0.00036986,2]
[314516635,1708396231772,-7379.53,0.00036986,2]
[314516636,1708396231781,-1446.79374,0.00036986,2]
[314516637,1708396231790,-616.339335,0.00036986,2]
[314516638,1708396231800,-452.32,0.00037042,2]
[314516639,1708396231809,-161.68862809,0.00037087,2]
[314516640,1708396231818,-200.0,0.00037093,2]
[314516641,1708396231827,-311.54,0.00037101,2]
[314516642,1708396231836,-157.15,0.00037141,2]
[314516643,1708396231845,-2000.0,0.00037155,2]
[314516644,1708396231854,-23900.0,0.00037158,2]
[314516645,1708396231863,-21527.25005971,0.00037211,2]
[314516646,1708396231873,-150.0,0.00037215,2]
[314516647,1708396231882,-500.0,0.00037215,2]
[314516648,1708396231892,-1000.0,0.00037271,2]
[314516649,1708396231900,-404.24,0.00037275,2]
[314516650,1708396231909,-200.0,0.00037287,2]
[314516651,1708396231919,-2113.19,0.00037288,2]
[314516652,1708396231928,-250.0,0.00037293,2]
[314516653,1708396231939,-200.0,0.00037305,2]
[314516654,1708396231949,-1838.78,0.0003731,2]
[314516655,1708396231959,-250.0,0.00037312,2]
[314516656,1708396231968,-500.0,0.00037361,2]
[314516657,1708396231978,-563.64,0.00037412,2]
[314516658,1708396231988,-476.29,0.00037562,2]
[314516659,1708396231997,-157.15,0.00037606,2]
[314516660,1708396232007,-161.62,0.00037678,2]
[314516661,1708396232016,-1944.0,0.00038,30]
[314516662,1708396232026,-157.15,0.0003807,2]
[314516663,1708396232037,-195.31,0.0003817,2]
[314516664,1708396232046,-917.1706571,0.00038256,2]
[314516665,1708396232056,-3000.0,0.00038354,2]
[314516666,1708396232066,-430.0,0.00038355,4]
[314516667,1708396232075,-4801.061731,0.00038356,2]
[314516668,1708396232085,-1694.144725,0.00038356,2]
[314516669,1708396232094,-1808.492175,0.00038356,2]
[314516670,1708396232103,-770.424169,0.00038356,2]
[314516671,1708396232112,-154.85,0.00038356,2]
[314516672,1708396232121,-311.54,0.00038473,2]
[314516673,1708396232130,-21527.25005971,0.00038484,2]
[314516674,1708396232139,-157.15,0.00038534,2]
[314516675,1708396232148,-161.62,0.0003862,2]
[314516676,1708396232157,-452.32,0.00038686,2]
[314516677,1708396232168,-1469.36,0.00038738,2]
[314516678,1708396232177,-178.39886113,0.000389,2]
[314516679,1708396232186,-157.15,0.00038998,2]
[314516680,1708396232196,-178.39886113,0.00039036,2]
[314516681,1708396232205,-1437.4,0.00039053,2]
[314516682,1708396232215,-166.22,0.00039089,2]
[314516683,1708396232225,-503.91555988,0.00039156,2]
[314516684,1708396232234,-189.022088,0.00039248,14]
[314516685,1708396232243,-198.82,0.0003926,2]
[314516686,1708396232252,-854.87350652,0.00039311,5]
[314516687,1708396232262,-1433.1,0.00039312,2]
[314516688,1708396232271,-181.022088,0.00039348,15]
[314516689,1708396232280,-1773.93518867,0.00039366,12]
[314516690,1708396232289,-1213.02795508,0.00039376,13]
[314516691,1708396232299,-917.17065703,0.00039413,2]
[314516692,1708396232308,-6721.486424,0.00039452,2]
[314516693,1708396232317,-2371.802616,0.00039452,2]
[314516694,1708396232327,-2531.889045,0.00039452,2]
[314516695,1708396232336,-1078.593837,0.00039452,2]
[314516696,1708396232345,-150.0,0.00039452,2]
[314516697,1708396232354,-423.07,0.00039452,2]
[314516698,1708396232364,-359.63,0.00039452,2]
[314516699,1708396232372,-184.86,0.00039452,2]
[314516700,1708396232382,-150.0,0.00039452,2]
[314516701,1708396232391,-150.0,0.00039452,2]
[314516702,1708396232400,-150.0,0.00039452,2]
[314516703,1708396232411,-343.89,0.00039452,2]
[314516704,1708396232421,-150.0,0.00039452,2]
[314516705,1708396232431,-423.07,0.00039452,2]
[314516706,1708396232440,-423.07,0.00039452,2]
[314516707,1708396232450,-150.0,0.00039452,2]
[314516708,1708396232459,-343.89,0.00039452,2]
[314516709,1708396232468,-860.5,0.00039452,2]
[314516710,1708396232477,-153.95,0.00039452,2]
[314516711,1708396232487,-355.16,0.00039452,2]
[314516712,1708396232496,-838.26,0.00039452,2]
[314516713,1708396232506,-157.15,0.00039463,2]
[314516714,1708396232515,-181.022088,0.00039498,16]
[314516715,1708396232524,-161.62,0.00039562,2]
[314516716,1708396232534,-6775.7475,0.000396,2]
[314516717,1708396232543,-1807.77640672,0.00039618,13]
[314516718,1708396232553,-1453.53361089,0.00039618,2]
[314516719,1708396232564,-39635.7159481,0.0003968,10]
[314516720,1708396232576,-1441.34,0.00039718,2]
[314516721,1708396232586,-18142.61082574,0.00039757,2]
[314516722,1708396233594,-812.7,0.00037287,2]
[314516723,1708396233603,-1691.60253915,0.00039757,2]
[314516724,1708396233651,-1122.11359062,0.00039757,2]
[314516730,1708396238955,-149.81697918,0.00039757,2]
[314516740,1708396242910,-200.0,0.00039315,2]
[314516741,1708396242920,-421.10612502,0.00039757,2]
[314516742,1708396242931,-424.54,0.000398,3]
[314516743,1708396242940,-424.54,0.000398,3]
[314516744,1708396242950,-204.69387498,0.000398,3]
[314516748,1708396245851,-419.0,0.00039452,2]
[314516749,1708396245861,-219.84612502,0.000398,3]
[314516750,1708396245871,-424.54,0.000398,3]
[314516751,1708396245880,-424.54,0.000398,3]
[314516752,1708396245889,-424.54,0.000398,3]
[314516753,1708396245898,-424.54,0.000398,3]
[314516754,1708396245908,-68.86710191,0.000398,3]
[314516847,1708397193127,-268.61706652,0.00030597,4]
[314516848,1708397237101,-166.08064409,0.00030498,2]
[314516849,1708397237120,-862.00051953,0.00030595,4]
[314516850,1708397237139,-692.5529149,0.00030596,4]
[314516851,1708397237158,-1526.34293348,0.00030597,4]
[314516852,1708397237178,-210.0,0.00030599,2]
[314516853,1708397237196,-193.00669437,0.00031297,2]
[314516854,1708397237215,-711.62847991,0.00031394,4]
[314516855,1708397350113,-193.00669437,0.00031296,2]
[314516856,1708397350136,-2425.79188841,0.00031394,4]
[314516857,1708397350158,-505.76576122,0.00031396,4]
[314516858,1708397350180,-172.64615491,0.00031498,2]
[314516869,1708397431854,-692.5529149,0.00033154,4]
[314516870,1708397431864,-685.71470978,0.00033155,4]
[314516871,1708397432008,-176.28580975,0.00033155,4]
[314516872,1708397432019,-172.64615491,0.00033156,2]
[314516873,1708397432030,-551.97588969,0.00033698,4]
[314516874,1708397432058,-27.07622319,0.00033698,4]
[314516884,1708397432158,-617.58788712,0.00033698,4]
[314516886,1708397432167,-150.0,0.00033699,3]
[314516887,1708397432176,-144.39072092,0.00033699,2]
[314516957,1708397437828,-5.60927908,0.00033699,2]
[314516958,1708397437837,-1023.72672092,0.000337,2]
[314516959,1708397437852,-449.92327908,0.000337,2]
[314516960,1708397437862,-1632.78081059,0.000337,2]
[314516961,1708397437873,-9280.21918941,0.000337,2]
[314516962,1708397437882,-2480.0,0.000337,2]
[314516963,1708397437892,-172.64615491,0.00034815,2]
[314516964,1708397437901,-8373.57,0.00035259,2]
[314516965,1708397437910,-499.99,0.00035259,2]
[314516966,1708397437922,-1762.93251139,0.00035259,2]
[314516967,1708397438054,-76.82671061,0.00035259,2]
[314516969,1708397438153,-95.65553414,0.00035259,2]
[314516973,1708397438180,-310.24010705,0.00035259,2]
[314516977,1708397438208,-517.16610711,0.00035259,2]
[314517188,1708397440322,-1733.25943512,0.00035259,2]
[314517190,1708397440335,-2629.34959458,0.00035259,2]
[314517192,1708397440344,-171.84995542,0.00035259,2]
[314517263,1708397441022,-292.51004458,0.00035259,2]
[314517265,1708397441032,-948.20784231,0.00036442,2]
[314517440,1708397442819,-51.78215769,0.00036442,2]
[314517442,1708397442828,-442.55704555,0.00036442,2]
[314517444,1708397442840,-678.40832583,0.00036442,2]
[314517449,1708397442875,-2993.01462862,0.00036442,2]
[314517451,1708397442884,-2602.55566483,0.00036442,2]
[314517463,1708397442986,-3413.65974339,0.00036442,2]
[314517466,1708397443007,-3063.89490017,0.00036442,2]
[314517755,1708397445777,-4924.98645472,0.00036442,2]
[314517762,1708397445834,-1632.00714496,0.00036442,2]
[314517769,1708397445892,-9328.55609193,0.00036442,2]
[314517771,1708397445901,-172.64615491,0.00036473,2]
[314517773,1708397445911,-210.0,0.0003648,13]
[314517776,1708397445920,-1532.31,0.00036715,2]
[314517777,1708397445930,-358.84,0.00036813,2]
[314517779,1708397445940,-200.0,0.00036826,2]
[314517781,1708397445949,-250.0,0.00036826,2]
[314517783,1708397445959,-2374.36,0.00036833,2]
[314517785,1708397445967,-13162.45345285,0.00036893,2]
[314517789,1708397445991,-8770.27485941,0.00036893,2]
[314517792,1708397446013,-1967.27168774,0.00036893,2]
[314517794,1708397446022,-150.0,0.00036941,2]
[314517796,1708397446031,-2000.0,0.0003695,2]
[314517798,1708397446040,-164.74,0.0003697,2]
[314517800,1708397446049,-198.69,0.00036977,2]
[314517802,1708397446058,-250.0,0.0003699,2]
[314517804,1708397446067,-530.0,0.00037005,2]
[314517806,1708397446077,-205.24346599,0.00037032,2]
[314517808,1708397446086,-3240.27,0.00037042,37]
[314517810,1708397446095,-500.0,0.00037052,2]
[314517812,1708397446104,-150.99,0.00037068,2]
[314517814,1708397446114,-210.0,0.00037069,3]
[314517816,1708397446123,-210.0,0.00037069,2]
[314517818,1708397446132,-1710.88043282,0.0003709,2]
[314517820,1708397446144,-2716.35956718,0.0003709,2]
[314517822,1708397446153,-186.92,0.00037189,2]
[314517824,1708397446162,-1225.23270688,0.00037223,2]
[314517971,1708397465104,717.19010405,0.0003,2]
[314517972,1708397513793,3165.63828468,0.00015,10]
[314517973,1708397514354,5548.40056643,0.0002689,2]
[314517983,1708398553145,-641.57467239,0.00026854,2]
[314517984,1708398553165,-515.45724095,0.00026855,2]
[314517985,1708398553184,-198.42657889,0.00026856,2]
[314517986,1708398556109,-14.81608177,0.00026856,2]
[314517987,1708398556130,-3623.68335143,0.0002689,2]
[314517988,1708398556164,-1251.50975014,0.0002689,2]
[314517989,1708398556185,-3989.48835062,0.00028,2]
[314517990,1708398556206,-9522.52091401,0.0003,2]
[314517991,1708398556226,-7714.36379672,0.0003,4]
[314517992,1708398556245,-358.32509794,0.00031232,4]
[314517993,1708398556266,-484.83,0.0003343,2]
[314517994,1708398556285,-499.99,0.00033583,2]
[314517995,1708398556307,-2445.0,0.000337,2]
[314517996,1708398556556,-12481.0,0.000337,2]
[314517997,1708398556575,-175.89,0.00034505,2]
[314517998,1708398556594,-150.0,0.00034533,2]
[314517999,1708398556612,-250.0,0.00034544,2]
[314518000,1708398556632,-9999.99,0.00034567,2]
[314518001,1708398556653,-293.51,0.00034567,2]
[314518002,1708398556674,-23900.0,0.00034584,2]
[314518003,1708398556693,-447.99,0.00034697,10]
[314518004,1708398556714,-389.97731764,0.00035,3]
[314518005,1708398556736,-37527.27349822,0.00035,2]
[314518008,1708398564117,-155.10150929,0.00026853,2]
[314518009,1708398574089,-806.0,0.00026853,2]
[314518015,1708398631860,-692.5529149,0.00034503,4]
[314518017,1708398631871,-997.2,0.00034504,4]
[314518019,1708398631880,-2000.0,0.00034505,2]
[314518020,1708398631890,-255.05014609,0.00034999,4]
[314518021,1708398631899,-21705.44487678,0.00035,2]
[314518022,1708398631910,-1003.8665897,0.00035,2]
[314518023,1708398631923,-279.69657276,0.00035,2]
[314518024,1708398631937,-1062.38997499,0.00035,2]
[314518025,1708398631950,-3285.86088101,0.00035,2]